lending/lending_fUSD_20240219
["ID","MTS","AMOUNT","RATE_DAILY","PERIOD"]
[314503909,1708377160497,-161.25919619,0.00050836,60]
[314503910,1708377160507,-200000.0,0.000509,30]
[314503911,1708377160517,-303619.52513496,0.000509,30]
[314503912,1708377160527,-585571.59264539,0.000509,30]
[314503913,1708377160537,-153.13804571,0.000509,48]
[314503914,1708377160547,-150.0,0.00050908,30]
[314503915,1708377160558,-195.92748848,0.00050917,60]
[314503916,1708377160567,-500.0,0.00050958,30]
[314503917,1708377160577,-618.31,0.00050958,30]
[314503918,1708377160586,-500.0,0.00050958,30]
[314503919,1708377160595,-602.01,0.00050958,30]
[314503920,1708377160604,-500.0,0.00050958,30]
[314503921,1708377160615,-512.36,0.00050958,30]
[314503922,1708377160624,-732.56,0.00050958,30]
[314503923,1708377160633,-605.18,0.00050958,30]
[314503924,1708377160642,-573.89,0.00050958,30]
[314503925,1708377160651,-606.28,0.00050958,30]
[314503926,1708377160661,-1049.77,0.00050958,30]
[314503927,1708377160670,-500.0,0.00050958,30]
[314503928,1708377160680,-500.0,0.00050958,30]
[314503929,1708377160691,-500.0,0.00050958,30]
[314503930,1708377160701,-500.0,0.00050958,30]
[314503931,1708377160710,-544.97,0.00050958,30]
[314503932,1708377160720,-500.0,0.00050958,30]
[314503933,1708377160730,-500.0,0.00050958,30]
[314503934,1708377160756,-500.0,0.00050958,30]
[314503935,1708377160771,-500.0,0.00050958,30]
[314503936,1708377160781,-498.19504194,0.00050958,30]
[314503937,1708377160791,-500.0,0.00050958,30]
[314503938,1708377160800,-500.0,0.00050958,30]
[314503939,1708377160810,-500.0,0.00050958,30]
[314503940,1708377160820,-505.06,0.00050958,30]
[314503941,1708377160829,-500.0,0.00050958,30]
[314503942,1708377160840,-1141.6,0.00050958,30]
[314503943,1708377160851,-409.61,0.00050958,30]
[314503944,1708377160861,-500.0,0.00050958,30]
[314503945,1708377160871,-500.0,0.00050958,30]
[314503946,1708377160881,-567.74,0.00050958,30]
[314503947,1708377160956,-777.32,0.00050958,2]
[314503948,1708377160989,-500.0,0.00050958,30]
[314503949,1708377160999,-603.14,0.00050958,30]
[314503950,1708377161009,-500.0,0.00050958,30]
[314503951,1708377161019,-500.0,0.00050958,30]
[314503952,1708377161029,-750.4,0.00050958,30]
[314503953,1708377161038,-599.04,0.00050958,30]
[314503954,1708377161048,-500.0,0.00050958,30]
[314503955,1708377161057,-500.0,0.00050958,30]
[314503956,1708377161067,-500.0,0.00050958,30]
[314503957,1708377161076,-500.0,0.00050958,30]
[314503958,1708377161086,-500.0,0.00050958,30]
[314503959,1708377161095,-690.28,0.00050958,30]
[314503960,1708377161105,-784.44,0.00050958,30]
[314503961,1708377161115,-533.46,0.00050958,30]
[314503962,1708377161124,-712.44,0.00050958,30]
[314503963,1708377161134,-568.95,0.00050958,30]
[314503964,1708377161144,-500.0,0.00050958,30]
[314503965,1708377161153,-543.64,0.00050958,30]
[314503966,1708377161163,-500.0,0.00050958,30]
[314503967,1708377161172,-513.43,0.00050958,30]
[314503968,1708377161181,-1175.74,0.00050958,30]
[314503969,1708377161190,-500.0,0.00050958,30]
[314503970,1708377161200,-500.0,0.00050958,30]
[314503971,1708377161209,-500.0,0.00050958,30]
[314503972,1708377161219,-500.0,0.00050958,30]
[314503973,1708377161228,-465.64775177,0.00050958,30]
[314503974,1708377161238,-562.7179257,0.00050958,30]
[314503975,1708377161247,-521.63,0.00050958,30]
[314503976,1708377161256,-523.21,0.00050958,30]
[314503977,1708377161265,-500.0,0.00050958,30]
[314503978,1708377161275,-500.0,0.00050958,30]
[314503979,1708377161284,-513.88,0.00050958,30]
[314503980,1708377161293,-500.0,0.00050958,30]
[314503981,1708377161303,-500.0,0.00050958,30]
[314503982,1708377161312,-660.98,0.00050958,30]
[314503983,1708377161321,-610.72,0.00050958,30]
[314503984,1708377161330,-555.82,0.00050958,30]
[314503985,1708377161340,-597.62,0.00050958,30]
[314503986,1708377161349,-611.78,0.00050958,30]
[314503987,1708377161358,-500.0,0.00050958,30]
[314503988,1708377161367,-918.19,0.00050958,30]
[314503989,1708377161376,-578.31,0.00050958,30]
[314503990,1708377161386,-500.0,0.00050958,30]
[314503991,1708377161395,-527.96,0.00050958,30]
[314503992,1708377161404,-553.98,0.00050958,30]
[314503993,1708377161414,-529.69,0.00050958,30]
[314503994,1708377161423,-2039.93,0.00050958,30]
[314503995,1708377161432,-556.74,0.00050958,30]
[314503996,1708377161442,-500.0,0.00050958,30]
[314503997,1708377161451,-692.58,0.00050958,30]
[314503998,1708377161461,-1605.07,0.00050958,30]
[314503999,1708377161471,-552.5,0.00050958,30]
[314504000,1708377161482,-500.0,0.00050958,30]
[314504001,1708377161491,-500.0,0.00050958,30]
[314504002,1708377161501,-500.0,0.00050958,30]
[314504003,1708377161512,-1090.94,0.00050958,30]
[314504004,1708377161522,-452.70494219,0.00050958,30]
[314504005,1708377161531,-591.77,0.00050958,30]
[314504006,1708377161540,-500.0,0.00050958,30]
[314504007,1708377161550,-664.26,0.00050958,30]
[314504008,1708377161560,-500.0,0.00050958,30]
[314504009,1708377161570,-1161.62,0.00050958,30]
[314504010,1708377161579,-500.0,0.00050958,30]
[314504011,1708377161588,-4690.89,0.00050958,30]
[314504012,1708377161597,-646.62,0.00050958,30]
[314504013,1708377161607,-635.19,0.00050958,30]
[314504014,1708377161618,-514.25,0.00050958,30]
[314504015,1708377161627,-667.9,0.00050958,30]
[314504016,1708377161637,-2224.42,0.00050958,30]
[314504017,1708377161648,-538.23,0.00050958,30]
[314504018,1708377161658,-500.0,0.00050958,30]
[314504019,1708377161668,-500.0,0.00050958,30]
[314504020,1708377161677,-516.68,0.00050958,30]
[314504021,1708377161687,-1819.91,0.00050958,30]
[314504022,1708377161697,-615.42,0.00050958,30]
[314504023,1708377161706,-500.0,0.00050958,30]
[314504024,1708377161716,-500.0,0.00050958,30]
[314504025,1708377161725,-278.09,0.00050958,30]
[314504026,1708377161735,-617.0,0.00050958,30]
[314504027,1708377161745,-544.62,0.00050958,30]
[314504028,1708377161755,-809.73,0.00050958,30]
[314504029,1708377161764,-509.09353211,0.00050958,30]
[314504030,1708377161774,-500.0,0.00050958,30]
[314504031,1708377161784,-497.22768899,0.00050958,30]
[314504032,1708377161793,-500.0,0.00050958,30]
[314504033,1708377161803,-1052.96,0.00050958,30]
[314504034,1708377161813,-553.52,0.00050958,30]
[314504035,1708377161822,-590.34,0.00050958,30]
[314504036,1708377161832,-566.64,0.00050958,30]
[314504037,1708377161841,-500.0,0.00050958,30]
[314504038,1708377161851,-500.0,0.00050958,30]
[314504039,1708377161861,-500.0,0.00050958,30]
[314504040,1708377161871,-519.09,0.00050958,30]
[314504041,1708377161880,-772.36,0.00050958,30]
[314504042,1708377161890,-1319.16,0.00050958,30]
[314504043,1708377161900,-500.0,0.00050958,30]
[314504044,1708377161910,-500.0,0.00050958,30]
[314504045,1708377161920,-558.08,0.00050958,30]
[314504046,1708377161929,-886.59,0.00050958,30]
[314504047,1708377161940,-767.53,0.00050958,30]
[314504048,1708377161950,-500.0,0.00050958,30]
[314504049,1708377161959,-677.61,0.00050958,30]
[314504050,1708377161970,-521.79,0.00050958,30]
[314504051,1708377161980,-594.14,0.00050958,30]
[314504052,1708377161990,-500.0,0.00050958,30]
[314504053,1708377162000,-781.41,0.00050958,30]
[314504054,1708377162010,-745.38,0.00050958,30]
[314504055,1708377162019,-500.0,0.00050958,30]
[314504056,1708377162029,-1287.42,0.00050958,30]
[314504057,1708377162038,-480.75,0.00050958,30]
[314504058,1708377162047,-230.11,0.00050958,30]
[314504059,1708377162057,-1082.3,0.00050958,30]
[314504060,1708377162067,-1242.47,0.00050958,30]
[314504061,1708377162077,-500.0,0.00050958,30]
[314504062,1708377162087,-627.94,0.00050958,30]
[314504063,1708377162096,-500.0,0.00050958,30]
[314504064,1708377162106,-505.9,0.00050958,30]
[314504065,1708377162116,-500.0,0.00050958,30]
[314504066,1708377162125,-529.79,0.00050958,30]
[314504067,1708377162135,-536.14,0.00050958,30]
[314504068,1708377162145,-500.0,0.00050958,30]
[314504069,1708377162155,-924.48,0.00050958,30]
[314504070,1708377162165,-3104.74,0.00050958,30]
[314504071,1708377162175,-523.82,0.00050958,30]
[314504072,1708377162185,-557.18,0.00050958,30]
[314504073,1708377162195,-500.0,0.00050958,30]
[314504074,1708377162204,-1017.28,0.00050958,30]
[314504075,1708377162213,-804.05,0.00050958,30]
[314504076,1708377162223,-2181.83,0.00050958,30]
[314504077,1708377162232,-500.0,0.00050958,30]
[314504078,1708377162242,-837.03,0.00050958,30]
[314504079,1708377162252,-1389.72,0.00050958,30]
[314504080,1708377162261,-2026.93,0.00050958,30]
[314504081,1708377162272,-654.5,0.00050958,30]
[314504082,1708377162281,-771.23,0.00050958,30]
[314504083,1708377162291,-500.44,0.00050958,30]
[314504084,1708377162300,-500.0,0.00050958,30]
[314504085,1708377162309,-604.81,0.00050958,30]
[314504086,1708377162319,-1426.77,0.00050958,30]
[314504087,1708377162329,-1086.95,0.00050958,30]
[314504088,1708377162339,-527.43,0.00050958,30]
[314504089,1708377162348,-500.0,0.00050958,30]
[314504090,1708377162358,-1745.38,0.00050958,30]
[314504091,1708377162368,-1075.7,0.00050958,30]
[314504092,1708377162377,-1268.71,0.00050958,30]
[314504093,1708377162386,-886.05,0.00050958,30]
[314504094,1708377162396,-899.22,0.00050958,30]
[314504095,1708377162405,-735.92,0.00050958,30]
[314504096,1708377162415,-1833.32,0.00050958,30]
[314504097,1708377162424,-2702.11,0.00050958,30]
[314504098,1708377162433,-500.0,0.00050958,30]
[314504099,1708377162442,-741.32,0.00050958,30]
[314504100,1708377162452,-10950.38,0.00050958,30]
[314504101,1708377162461,-3140.24,0.00050958,30]
[314504102,1708377162472,-878.99,0.00050958,30]
[314504103,1708377162484,-2678.83,0.00050958,30]
[314504104,1708377162498,-500.0,0.00050958,30]
[314504105,1708377162511,-1835.49,0.00050958,30]
[314504106,1708377162521,-694.62,0.00050958,30]
[314504107,1708377162530,-503.56,0.00050958,30]
[314504108,1708377162540,-20395.47,0.00050958,30]
[314504109,1708377162551,-2331.98,0.00050958,30]
[314504110,1708377162560,-599.22,0.00050958,30]
[314504111,1708377162570,-1756.54,0.00050958,30]
[314504112,1708377162908,-1530.72,0.00050958,30]
[314504113,1708377162918,-789.92,0.00050958,30]
[314504114,1708377162928,-780.99,0.00050958,30]
[314504115,1708377162937,-528.15266143,0.00050958,30]
[314504116,1708377162947,-2037.65,0.00050958,30]
[314504117,1708377162957,-562.3,0.00050958,30]
[314504118,1708377162966,-796.83,0.00050958,30]
[314504119,1708377162975,-898.46,0.00050958,30]
[314504120,1708377162985,-1380.27,0.00050958,30]
[314504121,1708377162994,-500.0,0.00050958,30]
[314504122,1708377163004,-1316.81,0.00050958,30]
[314504123,1708377163014,-677.42,0.00050958,30]
[314504124,1708377163023,-515.48,0.00050958,30]
[314504125,1708377163033,-3662.65,0.00050958,30]
[314504126,1708377163043,-500.0,0.00050958,30]
[314504127,1708377163052,-1284.51,0.00050958,30]
[314504128,1708377163062,-679.93,0.00050958,30]
[314504129,1708377163072,-957.91,0.00050958,30]
[314504130,1708377163081,-768.65,0.00050958,30]
[314504131,1708377163090,-500.0,0.00050958,30]
[314504132,1708377163100,-5456.49,0.00050958,30]
[314504133,1708377163109,-2893.51,0.00050958,30]
[314504134,1708377163119,-500.0,0.00050958,30]
[314504135,1708377163129,-2571.27,0.00050958,30]
[314504136,1708377163138,-826.56,0.00050958,30]
[314504137,1708377163147,-449.44999735,0.00050958,30]
[314504138,1708377163157,-1599.05,0.00050958,30]
[314504139,1708377163167,-721.27,0.00050958,30]
[314504140,1708377163176,-2039.63,0.00050958,30]
[314504141,1708377163186,-1426.52,0.00050958,30]
[314504142,1708377163196,-1623.95,0.00050958,30]
[314504143,1708377163205,-2095.21,0.00050958,30]
[314504144,1708377163214,-727.3,0.00050958,30]
[314504145,1708377163223,-523.64,0.00050958,30]
[314504146,1708377163232,-846.21,0.00050958,30]
[314504147,1708377163241,-1638.65,0.00050958,30]
[314504148,1708377163250,-1395.59,0.00050958,30]
[314504149,1708377163260,-586.56,0.00050958,30]
[314504150,1708377163270,-1364.92,0.00050958,30]
[314504151,1708377163279,-1945.02,0.00050958,30]
[314504152,1708377163288,-628.31,0.00050958,30]
[314504153,1708377163298,-500.0,0.00050958,30]
[314504154,1708377163307,-1041.23,0.00050958,30]
[314504155,1708377163317,-2020.6,0.00050958,30]
[314504156,1708377163326,-500.0,0.00050958,30]
[314504157,1708377163335,-395.34576634,0.00050958,30]
[314504158,1708377163345,-500.0,0.00050958,30]
[314504159,1708377163354,-500.0,0.00050958,30]
[314504160,1708377163365,-2298.57,0.00050958,30]
[314504161,1708377163374,-404.20608933,0.00050958,30]
[314504162,1708377163383,-500.0,0.00050958,30]
[314504163,1708377163393,-1046.88,0.00050958,30]
[314504164,1708377163402,-1430.94,0.00050958,30]
[314504165,1708377163411,-500.0,0.00050958,30]
[314504166,1708377163420,-1313.08,0.00050958,30]
[314504167,1708377163430,-500.0,0.00050958,30]
[314504168,1708377163439,-941.5,0.00050958,30]
[314504169,1708377163448,-990.31,0.00050958,30]
[314504170,1708377163458,-11885.76,0.00050958,30]
[314504171,1708377163468,-8772.79,0.00050958,30]
[314504172,1708377163480,-500.0,0.00050958,30]
[314504173,1708377163490,-2710.69,0.00050958,30]
[314504174,1708377163499,-1007.39,0.00050958,30]
[314504175,1708377163509,-500.0,0.00050958,30]
[314504176,1708377163521,-2030.96,0.00050958,30]
[314504177,1708377163530,-500.0,0.00050958,30]
[314504178,1708377163539,-877.27,0.00050958,30]
[314504179,1708377163549,-1539.61,0.00050958,30]
[314504180,1708377163561,-740.11,0.00050958,30]
[314504181,1708377163571,-774.82,0.00050958,30]
[314504182,1708377163581,-500.0,0.00050958,30]
[314504183,1708377163590,-530.62,0.00050958,30]
[314504184,1708377163600,-500.0,0.00050958,30]
[314504185,1708377163609,-1422.42,0.00050958,30]
[314504186,1708377163620,-500.0,0.00050958,30]
[314504187,1708377163629,-2610.19,0.00050958,30]
[314504188,1708377163639,-1255.72,0.00050958,30]
[314504189,1708377163649,-1016.32,0.00050958,30]
[314504190,1708377163658,-1233.1,0.00050958,30]
[314504191,1708377163668,-5037.62,0.00050958,30]
[314504192,1708377163677,-771.45,0.00050958,30]
[314504193,1708377163686,-1545.99,0.00050958,30]
[314504194,1708377163696,-583.37,0.00050958,30]
[314504195,1708377163705,-996.35,0.00050958,30]
[314504196,1708377163715,-753.57,0.00050958,30]
[314504197,1708377163725,-1249.41,0.00050958,30]
[314504198,1708377163735,-609.95,0.00050958,30]
[314504199,1708377163744,-4368.41,0.00050958,30]
[314504200,1708377163754,-3806.98,0.00050958,30]
[314504201,1708377163764,-1205.55,0.00050958,30]
[314504202,1708377163774,-1108.98,0.00050958,30]
[314504203,1708377163784,-745.48,0.00050958,30]
[314504204,1708377163793,-500.0,0.00050958,30]
[314504205,1708377163802,-761.98,0.00050958,30]
[314504206,1708377163812,-1070.44,0.00050958,30]
[314504207,1708377163822,-2405.19,0.00050958,30]
[314504208,1708377163832,-656.25,0.00050958,30]
[314504209,1708377163842,-1483.04,0.00050958,30]
[314504210,1708377163851,-4891.81,0.00050958,30]
[314504211,1708377163860,-703.9,0.00050958,30]
[314504212,1708377163871,-1120.83,0.00050958,30]
[314504213,1708377163880,-500.0,0.00050958,30]
[314504214,1708377163889,-500.0,0.00050958,30]
[314504215,1708377163900,-7009.22,0.00050958,30]
[314504216,1708377163910,-583.58,0.00050958,30]
[314504217,1708377163919,-5142.29,0.00050958,30]
[314504218,1708377163929,-282.08,0.00050958,30]
[314504219,1708377163938,-1149.32,0.00050958,30]
[314504220,1708377163948,-1818.57,0.00050958,30]
[314504221,1708377163958,-713.94,0.00050958,30]
[314504222,1708377163967,-2123.12,0.00050958,30]
[314504223,1708377163977,-820.56,0.00050958,30]
[314504224,1708377163987,-550.56,0.00050958,30]
[314504225,1708377163998,-4375.89,0.00050958,30]
[314504226,1708377164007,-500.0,0.00050958,30]
[314504227,1708377164017,-1716.3,0.00050958,30]
[314504228,1708377164026,-1435.17,0.00050958,30]
[314504229,1708377164036,-1857.4,0.00050958,30]
[314504230,1708377164045,-505.27,0.00050958,2]
[314504231,1708377164055,-1170.62,0.00050958,30]
[314504232,1708377164065,-1644.0,0.00050958,30]
[314504233,1708377164074,-9747.42,0.00050958,30]
[314504234,1708377164084,-277.77,0.00050958,30]
[314504235,1708377164093,-699.58,0.00050958,30]
[314504236,1708377164103,-500.0,0.00050958,30]
[314504237,1708377164112,-1379.02,0.00050958,30]
[314504238,1708377164122,-500.0,0.00050958,30]
[314504239,1708377164132,-1052.13,0.00050958,30]
[314504240,1708377164141,-504.45,0.00050958,30]
[314504241,1708377164150,-2820.04,0.00050958,30]
[314504242,1708377164160,-1201.01,0.00050958,30]
[314504243,1708377164169,-1773.34,0.00050958,30]
[314504244,1708377164179,-500.0,0.00050958,30]
[314504245,1708377164188,-2704.66,0.00050958,30]
[314504246,1708377164198,-1527.67,0.00050958,30]
[314504247,1708377164207,-3977.18,0.00050958,30]
[314504248,1708377164216,-582.39,0.00050958,30]
[314504249,1708377164225,-825.53,0.00050958,30]
[314504250,1708377164235,-898.27,0.00050958,30]
[314504251,1708377164245,-2898.65,0.00050958,30]
[314504252,1708377164255,-1746.66,0.00050958,30]
[314504253,1708377164264,-2731.53,0.00050958,30]
[314504254,1708377164273,-968.66,0.00050958,30]
[314504255,1708377164283,-500.0,0.00050958,30]
[314504256,1708377164292,-500.0,0.00050958,30]
[314504257,1708377164302,-1486.37,0.00050958,30]
[314504258,1708377164311,-1149.63,0.00050958,30]
[314504259,1708377164321,-1224.19,0.00050958,30]
[314504260,1708377164330,-1243.1,0.00050958,30]
[314504261,1708377164340,-1388.67,0.00050958,30]
[314504262,1708377164349,-500.0,0.00050958,30]
[314504263,1708377164358,-740.69,0.00050958,30]
[314504264,1708377164368,-857.25,0.00050958,30]
[314504265,1708377164377,-1119.06,0.00050958,30]
[314504266,1708377164387,-500.0,0.00050958,30]
[314504267,1708377164396,-634.93,0.00050958,30]
[314504268,1708377164406,-780.29,0.00050958,30]
[314504269,1708377164415,-995.4,0.00050958,30]
[314504270,1708377164424,-1750.39,0.00050958,30]
[314504271,1708377164434,-734.28,0.00050958,30]
[314504272,1708377164443,-1107.14,0.00050958,30]
[314504273,1708377164453,-500.0,0.00050958,30]
[314504274,1708377164462,-8099.08,0.00050958,30]
[314504275,1708377164472,-518.58,0.00050958,30]
[314504276,1708377164485,-575.48,0.00050958,30]
[314504277,1708377164494,-153.28144718,0.00050965,60]
[314504278,1708377164503,-200.0,0.00050987,81]
[314504279,1708377164515,-165.78496257,0.00050991,60]
[314504280,1708377164525,-100000.0,0.00051,51]
[314504281,1708377164535,-5649.13067717,0.00051,120]
[314504282,1708377164545,-500.0,0.00051,120]
[314504283,1708377164555,-743571.26799701,0.00051,120]
[314504284,1708377165060,-52369.49845828,0.00051,120]
[314504285,1708377165075,-6543.14688264,0.00051,120]
[314504286,1708377165333,-56322.8499763,0.00051,120]
[314504287,1708377166307,-533.49381657,0.00025183,2]
[314504288,1708377166639,-1466.50618343,0.00025183,2]
[314504289,1708377166649,-832.62,0.00027662,2]
[314504290,1708377166659,-832.62,0.00029926,2]
[314504291,1708377166668,-832.62,0.0003219,2]
[314504292,1708377166678,-832.62,0.00034454,2]
[314504293,1708377166687,-574.11896066,0.000349,2]
[314504294,1708377166697,-7500.0,0.00036,4]
[314504295,1708377166706,-1288.32258082,0.00036189,2]
[314504296,1708377166715,-832.62,0.00036718,2]
[314504297,1708377166725,-162.0,0.00038,2]
[314504298,1708377166734,-151.0,0.00038356,14]
[314504299,1708377166743,-9158.55824422,0.00038479,2]
[314504300,1708377166753,-566.87845196,0.000389,2]
[314504301,1708377166762,-832.62,0.00038982,2]
[314504302,1708377166772,-4630.333402,0.00039008,14]
[314504303,1708377166782,-151.0,0.00039008,14]
[314504304,1708377166792,-4630.333402,0.00039178,14]
[314504305,1708377166801,-151.0,0.00039178,14]
[314504306,1708377166810,-170.08246803,0.0004,2]
[314504307,1708377166819,-170.08246803,0.0004,2]
[314504308,1708377166829,-170.08246803,0.0004,2]
[314504309,1708377166839,-170.08246803,0.0004,2]
[314504310,1708377166848,-170.08246803,0.0004,2]
[314504311,1708377166857,-170.08246803,0.0004,2]
[314504312,1708377166868,-170.08246803,0.0004,2]
[314504313,1708377166878,-170.08246803,0.0004,2]
[314504314,1708377166887,-170.08246803,0.0004,2]
[314504315,1708377166896,-170.08246803,0.0004,2]
[314504316,1708377166905,-170.08246803,0.0004,2]
[314504317,1708377166914,-170.08246803,0.0004,2]
[314504318,1708377166922,-170.08246803,0.0004,2]
[314504319,1708377166931,-170.08246803,0.0004,2]
[314504320,1708377166940,-170.08246803,0.0004,2]
[314504321,1708377166949,-170.08246803,0.0004,2]
[314504322,1708377166958,-170.08246803,0.0004,2]
[314504323,1708377166968,-170.08246803,0.0004,2]
[314504324,1708377166978,-170.08246803,0.0004,2]
[314504325,1708377166987,-170.08246803,0.0004,2]
[314504326,1708377166996,-170.08246803,0.0004,2]
[314504327,1708377167006,-4630.333402,0.00040829,14]
[314504328,1708377167016,-4630.333402,0.0004098,14]
[314504329,1708377167026,-832.62,0.00041245,2]
[314504330,1708377167035,-4630.333402,0.00043,14]
[314504331,1708377167043,-832.62,0.00043509,2]
[314504332,1708377167053,-154.49839954,0.00043891,4]
[314504333,1708377167062,-154.49839954,0.00043963,4]
[314504334,1708377167070,-154.49839954,0.00044036,4]
[314504335,1708377167080,-154.49839954,0.00044109,4]
[314504336,1708377167088,-154.49839954,0.00044182,4]
[314504337,1708377167098,-4630.333402,0.0004498,14]
[314504338,1708377167107,-832.62,0.00045773,2]
[314504339,1708377167117,-500.0,0.00046575,30]
[314504340,1708377167128,-500.0,0.00046575,30]
[314504341,1708377167138,-4630.333402,0.00046575,14]
[314504342,1708377167147,-550.1729259,0.00046575,30]
[314504343,1708377167156,-519.13316132,0.00046575,30]
[314504344,1708377167166,-500.0,0.00046575,30]
[314504345,1708377167175,-500.0,0.00046575,30]
[314504346,1708377167185,-306.29449889,0.00046575,30]
[314504347,1708377167195,-500.0,0.00046849,30]
[314504348,1708377167205,-500.0,0.00046849,30]
[314504349,1708377167214,-500.0,0.00046849,30]
[314504350,1708377167223,-4630.333402,0.00046849,14]
[314504351,1708377167233,-500.0,0.00047123,30]
[314504352,1708377167243,-500.0,0.00047397,30]
[314504353,1708377167252,-952.09,0.00047397,30]
[314504354,1708377167262,-4630.333402,0.00047397,14]
[314504355,1708377167272,-500.0,0.00047671,30]
[314504356,1708377167281,-952.09,0.00047671,30]
[314504357,1708377167291,-500.0,0.00047945,30]
[314504358,1708377167301,-952.09,0.00047945,30]
[314504359,1708377167310,-832.62,0.00048037,2]
[314504360,1708377167320,-2148.29,0.00048219,30]
[314504361,1708377167329,-952.09,0.00048219,30]
[314504362,1708377167339,-2130.15,0.00048493,30]
[314504363,1708377167348,-1035.01,0.00048493,30]
[314504364,1708377167357,-2148.29,0.00048493,30]
[314504365,1708377167367,-952.09,0.00048493,30]
[314504366,1708377167377,-2130.15,0.00048767,30]
[314504367,1708377167386,-1035.01,0.00048767,30]
[314504368,1708377167395,-2148.29,0.00048767,30]
[314504369,1708377167405,-952.09,0.00048767,30]
[314504370,1708377167414,-1035.01,0.00049041,30]
[314504371,1708377167423,-1648.23,0.00049041,30]
[314504372,1708377167432,-2130.15,0.00049041,30]
[314504373,1708377167442,-2148.29,0.00049041,30]
[314504374,1708377167451,-952.09,0.00049041,30]
[314504375,1708377167460,-1505.89,0.00049315,30]
[314504376,1708377167470,-1035.01,0.00049315,30]
[314504377,1708377167481,-1648.23,0.00049315,30]
[314504378,1708377167491,-2130.15,0.00049315,30]
[314504379,1708377167500,-2148.29,0.00049315,30]
[314504380,1708377167511,-952.09,0.00049315,30]
[314504381,1708377167521,-1505.89,0.00049589,30]
[314504382,1708377167530,-1648.23,0.00049589,30]
[314504383,1708377167540,-1035.01,0.00049589,30]
[314504384,1708377167551,-2130.15,0.00049589,30]
[314504385,1708377167560,-2148.29,0.00049589,30]
[314504386,1708377167569,-952.09,0.00049589,30]
[314504387,1708377167579,-1505.89,0.00049863,30]
[314504388,1708377167588,-1648.23,0.00049863,30]
[314504389,1708377167597,-1035.01,0.00049863,30]
[314504390,1708377167606,-2130.15,0.00049863,30]
[314504391,1708377167615,-2148.29,0.00049863,30]
[314504392,1708377167625,-952.09,0.00049863,30]
[314504393,1708377167635,-1505.89,0.00050136,30]
[314504394,1708377167644,-1648.23,0.00050136,30]
[314504395,1708377167653,-1035.01,0.00050136,30]
[314504396,1708377167662,-2130.15,0.00050136,30]
[314504397,1708377167672,-2148.29,0.00050136,30]
[314504398,1708377167681,-832.62,0.00050301,2]
[314504399,1708377167690,-500.0,0.0005041,30]
[314504400,1708377167699,-1505.89,0.0005041,30]
[314504401,1708377167709,-1648.23,0.0005041,30]
[314504402,1708377167718,-1035.01,0.0005041,30]
[314504403,1708377167728,-2130.15,0.0005041,30]
[314504404,1708377167737,-2148.29,0.0005041,30]
[314504405,1708377167747,-500.0,0.00050684,30]
[314504406,1708377167758,-1505.89,0.00050684,30]
[314504407,1708377167775,-1648.23,0.00050684,30]
[314504408,1708377167784,-1035.01,0.00050684,30]